bitfinex/quotes_BTCUSD_20230905
["timestamp","ask_amount","ask_price","bid_price","bid_amount"]
[1693925640885,0.33373535,25719.0,25718.0,4.29025054]
[1693925641127,0.78299896,25719.0,25718.0,3.41266]
[1693925641344,0.59643695,25719.0,25718.0,3.41266]
[1693925641555,0.60343695,25719.0,25718.0,3.41266]
[1693925641783,0.60343695,25719.0,25718.0,3.41066]
[1693925642431,0.69176282,25719.0,25718.0,2.332995]
[1693925642646,2.17189099,25719.0,25716.0,1.555417]
[1693925642870,0.1033,25717.0,25716.0,1.555417]
[1693925643084,0.20621604,25717.0,25716.0,1.555417]
[1693925643297,0.10291604,25717.0,25716.0,1.555417]
[1693925643948,0.10291604,25717.0,25716.0,1.565417]
[1693925644388,0.45624517,25717.0,25716.0,0.01]
[1693925644611,0.45624517,25717.0,25715.0,1.555491]
[1693925644827,0.7297547,25716.0,25715.0,1.555491]
[1693925645481,0.6264547,25716.0,25715.0,1.555491]
[1693925646660,0.6264547,25716.0,25715.0,1.565491]
[1693925646863,0.6264547,25716.0,25715.0,1.555491]
[1693925647556,0.6264547,25716.0,25715.0,1.565491]
[1693925648171,0.6264547,25716.0,25715.0,0.797743]
[1693925648387,0.6264547,25716.0,25715.0,1.575499]
[1693925654180,0.39333963,25716.0,25715.0,0.797743]
[1693925656825,0.39333963,25716.0,25715.0,0.02]
[1693925657029,3.55356201,25716.0,25715.0,0.02]
[1693925657738,3.55356201,25716.0,25715.0,0.01]
[1693925658170,3.55356201,25716.0,25712.0,2.333504]
[1693925658524,3.36334597,25716.0,25715.0,0.002]
[1693925658716,3.70668206,25716.0,25715.0,0.002]
[1693925658950,3.69968206,25716.0,25715.0,0.001]
[1693925659150,3.70668206,25716.0,25715.0,0.003]
[1693925659685,3.413709,25716.0,25715.0,0.003]
[1693925659885,3.63474446,25716.0,25715.0,0.003]
[1693925660087,3.67101909,25716.0,25715.0,0.003]
[1693925660301,3.44098363,25716.0,25715.0,0.002]
[1693925660491,3.54276731,25716.0,25715.0,0.002]
[1693925660697,3.72200084,25716.0,25715.0,0.004]
[1693925661292,3.44998363,25716.0,25715.0,0.004]
[1693925661501,3.70744576,25716.0,25715.0,0.004]
[1693925661933,3.55034576,25716.0,25715.0,0.004]
[1693925662847,3.29288363,25716.0,25715.0,0.004]
[1693925664211,3.22061091,25716.0,25715.0,0.004]
[1693925666404,2.44288591,25716.0,25715.0,0.004]
[1693925666635,2.44288591,25716.0,25715.0,0.781756]
[1693925666636,0.39749064,25716.0,25715.0,0.781756]
[1693925666844,0.39749064,25716.0,25715.0,1.559512]
[1693925669051,0.13521072,25716.0,25715.0,2.337268]
[1693925669498,0.28524117,25716.0,25715.0,2.337268]
[1693925669748,0.36817726,25716.0,25715.0,2.337268]
[1693925674355,0.32156486,25716.0,25715.0,2.337268]
[1693925676866,0.23862877,25716.0,25715.0,2.762401]
[1693925677752,0.36938801,25716.0,25715.0,2.760401]
[1693925677930,0.36938801,25716.0,25715.0,2.758401]
[1693925678187,0.37038801,25716.0,25715.0,2.438568]
[1693925678421,0.37638801,25716.0,25715.0,2.440568]
[1693925678644,0.22862877,25716.0,25715.0,2.438568]
[1693925680157,0.22862877,25716.0,25715.0,2.440568]
[1693925680158,0.23662877,25716.0,25715.0,2.440568]
[1693925680365,0.37638798,25716.0,25715.0,2.440568]
[1693925680787,0.36838798,25716.0,25715.0,2.438568]
[1693925681213,0.37638798,25716.0,25715.0,2.439568]
[1693925681634,0.36838798,25716.0,25715.0,2.438568]
[1693925681896,0.36838798,25716.0,25715.0,2.335268]
[1693925682126,0.36838798,25716.0,25715.0,0.004]
[1693925682127,0.64380097,25716.0,25715.0,0.004]
[1693925682333,0.49804176,25716.0,25715.0,0.779756]
[1693925682550,0.49804176,25716.0,25715.0,2.335268]
[1693925682760,0.63781147,25716.0,25715.0,2.335268]
[1693925682967,0.64381147,25716.0,25715.0,2.335268]
[1693925683618,0.63581147,25716.0,25715.0,2.333268]
[1693925684492,0.49604176,25716.0,25715.0,2.333268]
[1693925684722,0.50304176,25716.0,25715.0,2.333268]
[1693925684935,0.23562877,25716.0,25715.0,2.333268]
[1693925685583,0.23562877,25716.0,25715.0,2.758001]
[1693925685584,0.31219106,25716.0,25715.0,2.758001]
[1693925685801,0.31219106,25716.0,25715.0,2.436568]
[1693925687109,0.14248649,25716.0,25715.0,2.88969327]
[1693925687330,0.04927463,25716.0,25715.0,3.60167854]
[1693925687540,0.04927463,25716.0,25715.0,3.59651854]
[1693925687749,0.013,25716.0,25715.0,3.52985854]
[1693925687953,0.013,25716.0,25715.0,3.12321327]
[1693925688395,0.10021186,25716.0,25715.0,3.12321327]
[1693925688614,0.12278564,25716.0,25715.0,3.12421327]
[1693925689030,0.12278564,25716.0,25715.0,3.12521327]
[1693925689442,0.02957378,25716.0,25715.0,3.12521327]
[1693925689712,0.02957378,25716.0,25715.0,3.51185854]
[1693925689958,0.02957378,25716.0,25715.0,3.61321854]
[1693925690167,0.09321186,25717.0,25715.0,3.60907854]
[1693925690379,0.09321186,25717.0,25716.0,0.48994527]
[1693925690626,0.09321186,25717.0,25716.0,2.82312027]
[1693925690833,0.09321186,25717.0,25716.0,3.02563691]
[1693925691802,0.09921186,25717.0,25716.0,3.02563691]
[1693925692466,0.10621186,25717.0,25716.0,3.02563691]
[1693925693186,0.013,25717.0,25716.0,4.03359691]
[1693925693428,0.013,25717.0,25716.0,4.04001691]
[1693925693692,0.013,25717.0,25716.0,4.03959691]
[1693925693948,0.013,25717.0,25716.0,4.03503691]
[1693925694196,0.006,25717.0,25716.0,4.03545691]
[1693925694443,0.09321186,25719.0,25717.0,0.12]
[1693925694648,0.09321186,25719.0,25718.0,3.90060527]
[1693925696020,0.09321186,25719.0,25718.0,3.90960527]
[1693925696237,0.09321186,25719.0,25718.0,4.06518927]
[1693925696417,0.13982076,25720.0,25718.0,4.06518927]
[1693925696418,0.23303262,25720.0,25718.0,4.06518927]
[1693925696558,0.23303262,25720.0,25719.0,0.1033]
[1693925696760,0.09321186,25720.0,25719.0,2.436205]
[1693925697586,0.09321186,25720.0,25719.0,2.82285027]
[1693925698516,0.09321186,25720.0,25719.0,2.82385027]
[1693925698708,0.09321186,25720.0,25719.0,2.82485027]
[1693925700196,0.3389337,25720.0,25719.0,2.438205]
[1693925700395,0.3389337,25720.0,25719.0,2.334905]
[1693925702345,0.09321186,25720.0,25719.0,2.334905]
[1693925702581,0.09321186,25720.0,25719.0,2.7020504]
[1693925702802,0.09321186,25721.0,25719.0,2.8053504]
[1693925703009,0.09321186,25722.0,25720.0,0.1033]
[1693925703218,0.09321186,25722.0,25721.0,3.213596]
[1693925704241,0.10121186,25722.0,25721.0,3.213596]
[1693925704453,0.10721186,25722.0,25721.0,3.60224127]
[1693925704663,0.09921186,25722.0,25721.0,3.215596]
[1693925705043,0.10721186,25722.0,25721.0,3.217596]
[1693925705242,0.13679123,25722.0,25721.0,3.217596]
[1693925707688,0.13679123,25722.0,25721.0,2.336722]
[1693925707892,0.39830385,25722.0,25721.0,2.336722]
[1693925708111,0.39830385,25722.0,25721.0,1.559148]
[1693925709537,0.53812461,25722.0,25721.0,1.559148]
[1693925709964,0.39830385,25722.0,25721.0,1.559148]
[1693925710586,0.53812461,25722.0,25721.0,1.559148]
[1693925710999,0.39830385,25722.0,25721.0,1.559148]
[1693925711434,0.53812461,25722.0,25721.0,1.559148]
[1693925711631,0.53812461,25722.0,25721.0,0.004]
[1693925711632,2.58538977,25722.0,25721.0,0.004]
[1693925711840,3.36293377,25722.0,25721.0,0.004]
[1693925712250,3.5632249,25722.0,25721.0,0.004]
[1693925712657,3.79307002,25722.0,25721.0,0.004]
[1693925713285,3.41377459,25722.0,25721.0,0.004]
[1693925714139,3.18392947,25722.0,25721.0,0.004]
[1693925716164,3.45735898,25722.0,25721.0,0.004]
[1693925716366,0.63478171,25722.0,25721.0,1.559148]
[1693925718528,0.3613522,25722.0,25721.0,2.336722]
[1693925720259,0.64836021,25722.0,25721.0,1.559148]
[1693925720498,0.75166021,25722.0,25721.0,0.781574]
[1693925721995,0.75166021,25722.0,25721.0,1.559148]
[1693925722149,0.64836021,25722.0,25721.0,1.559148]
[1693925722826,1.03500548,25722.0,25721.0,1.559148]
[1693925723081,1.03500548,25722.0,25721.0,0.004]
[1693925723082,2.18891888,25722.0,25721.0,0.004]
[1693925723591,2.18891888,25722.0,25721.0,1.559148]
[1693925723592,0.64836021,25722.0,25721.0,1.559148]
[1693925724156,0.64836021,25722.0,25721.0,2.336722]
[1693925727487,0.3613522,25722.0,25721.0,2.336722]
[1693925732018,0.3613522,25722.0,25721.0,3.217596]
[1693925732398,0.38001035,25722.0,25721.0,3.96988127]
[1693925732579,0.38001035,25722.0,25721.0,4.43878654]
[1693925732818,0.38001035,25722.0,25721.0,4.43944654]
[1693925733046,0.38001035,25722.0,25721.0,4.43782654]
[1693925733240,0.38001035,25722.0,25721.0,4.43872654]
[1693925733446,0.38001035,25722.0,25721.0,4.44004654]
[1693925733746,0.38001035,25722.0,25721.0,4.44310654]
[1693925733972,0.38001035,25722.0,25721.0,4.46352654]
[1693925734148,0.36601035,25722.0,25721.0,4.46198654]
[1693925734380,0.36601035,25722.0,25721.0,4.46360654]
[1693925734557,0.36601035,25722.0,25721.0,4.46454654]
[1693925734858,0.37301035,25722.0,25721.0,4.46508654]
[1693925735009,0.37301035,25722.0,25721.0,4.46544654]
[1693925735216,0.36601035,25722.0,25721.0,4.60590654]
[1693925735386,0.36601035,25722.0,25721.0,4.60714654]
[1693925735588,0.36601035,25722.0,25721.0,4.60402654]
[1693925735794,0.36601035,25722.0,25721.0,4.60630654]
[1693925736006,0.31777283,25722.0,25721.0,4.59358654]
[1693925736201,0.31777283,25722.0,25721.0,4.59238654]
[1693925736542,0.29962178,25724.0,25723.0,3.94757]
[1693925736752,0.29962178,25724.0,25723.0,5.14416054]
[1693925736971,0.29962178,25724.0,25723.0,5.24334054]
[1693925737147,0.29962178,25724.0,25723.0,5.24622054]
[1693925737350,0.29962178,25724.0,25723.0,5.25066054]
[1693925737578,0.29962178,25724.0,25723.0,5.65788054]
[1693925737753,0.29962178,25724.0,25723.0,5.65740054]
[1693925737917,0.29962178,25724.0,25723.0,5.65356054]
[1693925738116,0.29962178,25724.0,25723.0,5.67358054]
[1693925738339,0.31465456,25727.0,25725.0,0.4089]
[1693925738731,0.31465456,25727.0,25726.0,5.47448327]
[1693925738908,0.31465456,25727.0,25726.0,5.54270327]
[1693925739106,0.31465456,25727.0,25726.0,5.47448327]
[1693925739492,0.31465456,25727.0,25726.0,5.54150327]
[1693925739687,0.31465456,25727.0,25726.0,5.92766854]
[1693925739890,0.31465456,25727.0,25726.0,6.08235354]
[1693925740049,0.31465456,25727.0,25726.0,6.01665354]
[1693925740254,0.31465456,25727.0,25726.0,5.23923054]
[1693925740451,0.31465456,25727.0,25726.0,5.26423054]
[1693925741560,0.31465456,25727.0,25726.0,5.28923054]
[1693925743984,0.31465456,25727.0,25726.0,4.88258527]
[1693925744193,0.31465456,25727.0,25726.0,3.718517]
[1693925745586,0.31465456,25727.0,25726.0,3.615217]
[1693925746559,0.54600713,25727.0,25726.0,2.537794]
[1693925747419,0.54600713,25727.0,25726.0,1.760371]
[1693925747640,0.54600713,25727.0,25726.0,0.827423]
[1693925748338,0.54600713,25727.0,25726.0,0.802423]
[1693925748500,0.54600713,25727.0,25726.0,0.827423]
[1693925748696,0.54600713,25727.0,25726.0,1.579846]
[1693925748897,0.54600713,25727.0,25726.0,1.588846]
[1693925749452,0.54600713,25727.0,25726.0,1.579846]
[1693925749596,0.54600713,25727.0,25726.0,1.580846]
[1693925749798,0.54600713,25727.0,25726.0,1.555846]
[1693925750063,0.58327331,25727.0,25726.0,1.555846]
[1693925750217,0.58327331,25727.0,25726.0,1.580846]
[1693925750422,0.58327331,25727.0,25726.0,1.555846]
[1693925750824,0.58327331,25727.0,25726.0,1.556846]
[1693925751954,2.13280407,25727.0,25726.0,0.002]
[1693925752372,1.90670674,25727.0,25726.0,0.002]
[1693925752679,2.01000674,25727.0,25726.0,0.001]
[1693925753094,2.26851661,25727.0,25726.0,0.001]
[1693925753299,1.49112361,25727.0,25725.0,0.77745]
[1693925753510,0.1033,25726.0,25725.0,0.77745]
[1693925754604,0.1033,25726.0,25725.0,1.555903]
[1693925754713,0.1033,25726.0,25725.0,1.556903]
[1693925754916,0.1033,25726.0,25725.0,1.555903]
[1693925755297,0.60843061,25727.0,25725.0,2.5812496]
[1693925755515,0.60843061,25727.0,25725.0,2.5822496]
[1693925756229,0.60843061,25727.0,25725.0,2.5812496]
[1693925756493,0.60843061,25727.0,25725.0,2.332356]
[1693925757222,0.60843061,25727.0,25725.0,2.333356]
[1693925757434,0.60843061,25727.0,25725.0,2.332356]
[1693925757633,0.60843061,25727.0,25725.0,2.333356]
[1693925757759,0.60843061,25727.0,25725.0,2.334356]
[1693925760256,0.35192074,25727.0,25725.0,2.6610949]
[1693925760573,0.35192074,25727.0,25725.0,2.334356]
[1693925763273,0.57898081,25727.0,25725.0,2.334356]
[1693925763655,0.28927159,25726.0,25725.0,1.556903]
[1693925764503,0.28927159,25726.0,25725.0,1.555903]
[1693925764985,0.28927159,25726.0,25725.0,2.334356]
[1693925765187,0.32586573,25726.0,25725.0,2.334356]
[1693925766085,0.32586573,25726.0,25725.0,2.33149985]
[1693925768159,0.03659414,25726.0,25725.0,2.33149985]
[1693925772233,0.51575115,25728.0,25725.0,2.33149985]
[1693925772757,0.26476483,25727.0,25725.0,2.33149985]
[1693925773211,0.26476483,25727.0,25725.0,2.33049985]
[1693925773583,0.26476483,25727.0,25725.0,2.32949985]
[1693925774391,0.26476483,25727.0,25725.0,2.33049985]
[1693925774708,0.26476483,25727.0,25725.0,2.33149985]
[1693925778519,0.26476483,25727.0,25725.0,1.55404685]
[1693925779099,1.04216083,25727.0,25725.0,1.55404685]
[1693925779298,1.4288061,25727.0,25725.0,1.55404685]
[1693925779499,0.41898247,25726.0,25725.0,1.55404685]
[1693925779704,0.6951179,25726.0,25725.0,1.55404685]
[1693925780081,0.7317242,25726.0,25725.0,1.55404685]
[1693925780291,0.7317242,25726.0,25725.0,1.55304685]
[1693925780492,0.7317242,25726.0,25725.0,1.55404685]
[1693925780804,0.7317242,25726.0,25725.0,1.55304685]
[1693925781137,1.5091472,25726.0,25725.0,0.002]
[1693925782807,1.61965704,25726.0,25725.0,0.002]
[1693925783075,2.85882057,25726.0,25725.0,0.002]
[1693925783632,3.2772501,25726.0,25725.0,0.001]
[1693925783838,3.2772501,25726.0,25722.0,0.777529]
[1693925784042,0.88082,25723.0,25721.0,0.933138]
[1693925784245,0.97380289,25723.0,25721.0,0.933138]
[1693925785066,0.25994235,25722.0,25721.0,0.933138]
[1693925785272,0.25994235,25722.0,25721.0,0.795559]
[1693925786725,0.36324235,25722.0,25721.0,0.795559]
[1693925786931,0.36324235,25722.0,25721.0,0.036]
[1693925787132,1.91833035,25722.0,25721.0,0.036]
[1693925787546,2.22087162,25722.0,25721.0,0.036]
[1693925787959,1.91833035,25722.0,25721.0,0.036]
[1693925788366,1.91833035,25722.0,25721.0,0.018]
[1693925788567,1.91833035,25722.0,25719.0,2.488451]
[1693925788836,2.81226016,25722.0,25721.0,0.018]
[1693925789067,3.15156016,25722.0,25721.0,0.018]
[1693925789304,3.53820543,25722.0,25718.0,1.555283]
[1693925789512,0.1033,25719.0,25718.0,1.555283]
[1693925790078,0.35608684,25719.0,25718.0,1.555283]
[1693925790454,0.35608684,25719.0,25718.0,0.778636]
[1693925791469,1.13372184,25719.0,25718.0,0.001]
[1693925791993,1.13372184,25719.0,25718.0,0.002]
[1693925792714,1.13372184,25719.0,25718.0,0.001]
[1693925793099,1.13372184,25719.0,25718.0,0.002]
[1693925793516,1.13372184,25719.0,25718.0,0.001]
[1693925793726,2.25801162,25719.0,25716.0,2.333127]
[1693925793927,0.1033,25717.0,25716.0,2.333127]
[1693925794335,2.14505684,25719.0,25716.0,2.333127]
[1693925794781,2.14805684,25719.0,25716.0,2.333127]
[1693925795095,2.14505684,25719.0,25716.0,2.333127]
[1693925795333,0.03569712,25718.0,25716.0,2.334127]
[1693925795665,0.03569712,25718.0,25716.0,2.333127]
[1693925796335,0.004,25719.0,25716.0,2.333127]
[1693925796762,0.28329056,25720.0,25716.0,2.333127]
[1693925796963,0.28329056,25720.0,25716.0,2.334127]
[1693925797114,0.003,25719.0,25716.0,2.334127]
[1693925798303,0.003,25719.0,25716.0,2.333127]
[1693925798770,0.007,25719.0,25716.0,2.333127]
[1693925800464,0.007,25719.0,25716.0,2.71977227]
[1693925800656,0.007,25719.0,25718.0,2.332995]
[1693925800984,0.004,25719.0,25718.0,3.11066]
[1693925801533,0.0928689,25721.0,25718.0,3.11066]
[1693925801737,0.38589318,25722.0,25718.0,3.11066]
[1693925801952,0.38589318,25722.0,25718.0,3.26531811]
[1693925802155,0.0928689,25722.0,25718.0,3.26531811]
[1693925802416,0.0928689,25722.0,25718.0,3.21396]
[1693925802417,0.003,25719.0,25718.0,3.21396]
[1693925802578,0.003,25719.0,25718.0,3.21596]
[1693925803310,0.003,25719.0,25718.0,3.21396]
[1693925803609,0.003,25719.0,25718.0,3.21596]
[1693925803749,0.003,25719.0,25718.0,3.2816]
[1693925803946,0.0968689,25722.0,25718.0,3.60260527]
[1693925804155,0.0968689,25722.0,25718.0,3.21596]
[1693925804564,0.0998689,25722.0,25718.0,3.2845]
[1693925804813,0.0928689,25722.0,25718.0,3.28146]
[1693925804987,0.0928689,25722.0,25718.0,3.2823]
[1693925805189,0.0928689,25722.0,25718.0,3.283]
[1693925805473,0.0958689,25722.0,25720.0,0.1033]
[1693925805675,0.0958689,25722.0,25721.0,3.110296]
[1693925806089,0.0998689,25722.0,25721.0,3.110296]
[1693925806672,0.0958689,25722.0,25721.0,2.332722]
[1693925806885,0.003,25722.0,25721.0,2.332722]
[1693925807032,0.25311058,25723.0,25721.0,2.332722]
[1693925807432,0.003,25722.0,25721.0,2.332722]
[1693925808057,0.007,25722.0,25721.0,2.334722]
[1693925808237,0.004,25722.0,25721.0,2.334722]
[1693925808679,0.007,25722.0,25721.0,2.336722]
[1693925809202,0.30635165,25722.0,25721.0,0.781574]
[1693925809949,0.34212013,25722.0,25721.0,0.781574]
[1693925811681,0.34212013,25722.0,25721.0,1.559148]
[1693925813277,0.34212013,25722.0,25721.0,2.336722]
[1693925814388,0.34212013,25722.0,25721.0,1.559148]
[1693925815445,0.38798076,25722.0,25721.0,1.559148]
[1693925815654,0.34212013,25722.0,25721.0,1.559148]
[1693925815853,0.34212013,25722.0,25721.0,0.781574]
[1693925819614,0.34212013,25722.0,25721.0,1.559148]
[1693925821102,0.34212013,25722.0,25721.0,0.781574]
[1693925823389,1.11966413,25722.0,25721.0,0.004]
[1693925830837,1.89720813,25722.0,25721.0,0.004]
[1693925835767,2.86534575,25722.0,25721.0,0.004]
[1693925836031,3.15975646,25722.0,25721.0,0.004]
[1693925836228,2.86534575,25722.0,25721.0,0.004]
[1693925836633,3.09944796,25722.0,25721.0,0.004]
[1693925836805,2.86534575,25722.0,25721.0,0.004]
[1693925837381,3.25199102,25722.0,25721.0,0.004]
[1693925838884,2.86534575,25722.0,25721.0,0.004]
[1693925839089,3.09757515,25722.0,25721.0,0.004]
[1693925839729,3.15757515,25722.0,25721.0,0.004]
[1693925839933,3.06469191,25722.0,25721.0,0.004]
[1693925840355,2.92534575,25722.0,25721.0,0.004]
[1693925840912,2.98116114,25722.0,25721.0,0.004]
[1693925842438,3.16692762,25722.0,25721.0,0.004]
[1693925843085,3.10692762,25722.0,25721.0,0.004]
[1693925843224,2.92116114,25722.0,25721.0,0.004]
[1693925846206,3.10714642,25722.0,25721.0,0.004]
[1693925847557,2.92116114,25722.0,25721.0,0.004]
[1693925850500,3.15624937,25722.0,25721.0,0.004]
[1693925851262,3.48163755,25722.0,25721.0,0.004]
[1693925855506,3.19073393,25722.0,25721.0,0.004]
[1693925855638,3.44128981,25722.0,25721.0,0.004]
[1693925856157,3.19073393,25722.0,25721.0,0.004]
[1693925857391,3.5773792,25722.0,25721.0,0.004]
[1693925858731,3.25199102,25722.0,25721.0,0.004]
[1693925858937,3.57741407,25722.0,25721.0,0.004]
[1693925859946,3.43794705,25722.0,25721.0,0.004]
[1693925867471,3.72383036,25722.0,25721.0,0.004]
[1693925868387,3.43794705,25722.0,25721.0,0.004]
[1693925868612,3.64976674,25722.0,25721.0,0.004]
[1693925869068,3.43794705,25722.0,25721.0,0.004]
[1693925871081,3.64856255,25722.0,25721.0,0.004]
[1693925871623,3.43794705,25722.0,25721.0,0.004]
[1693925871827,3.67621343,25722.0,25721.0,0.004]
[1693925872026,3.43794705,25722.0,25721.0,0.004]
[1693925872998,3.66862296,25722.0,25721.0,0.004]
[1693925873506,3.43794705,25722.0,25721.0,0.004]
[1693925877297,3.70884565,25722.0,25721.0,0.004]
[1693925877493,3.32220038,25722.0,25721.0,0.004]
[1693925878631,3.5549063,25722.0,25721.0,0.004]
[1693925879284,3.36883434,25722.0,25721.0,0.004]
[1693925883973,2.48799034,25722.0,25721.0,0.004]
[1693925884193,0.54625707,25722.0,25721.0,0.004]
[1693925884398,0.31366708,25722.0,25721.0,0.781574]
[1693925890161,0.54640041,25722.0,25721.0,0.781574]
[1693925891628,0.27550181,25722.0,25721.0,0.781574]
[1693925891832,0.27550181,25722.0,25721.0,2.440022]
[1693925891833,0.46169121,25722.0,25721.0,2.440022]
[1693925892033,0.55479355,25722.0,25721.0,2.440022]
[1693925892264,0.27550181,25722.0,25721.0,2.440022]
[1693925892467,0.18241443,25722.0,25721.0,2.440022]
[1693925892873,0.18241443,25722.0,25721.0,2.438022]
[1693925892874,0.03976848,25722.0,25721.0,2.438022]
[1693925893275,0.03876848,25722.0,25721.0,2.437022]
[1693925893480,0.04276848,25722.0,25721.0,2.439022]
[1693925893747,0.03976848,25722.0,25721.0,2.438022]
[1693925894121,0.03576848,25722.0,25721.0,2.436022]
[1693925894331,0.03976848,25722.0,25721.0,2.436022]
[1693925894989,0.04276848,25722.0,25721.0,2.436022]
[1693925900938,0.04276848,25722.0,25721.0,2.82266727]
[1693925902704,4.8e-07,25722.0,25721.0,3.85756727]
[1693925902908,0.9892,25725.0,25722.0,0.5489]
[1693925903246,0.23274829,25727.0,25723.0,4.67023527]
[1693925903592,0.23274829,25727.0,25726.0,3.109692]
[1693925903905,0.23274829,25727.0,25726.0,3.409692]
[1693925904648,0.23274829,25727.0,25726.0,3.565231]
[1693925904842,0.23274829,25727.0,25726.0,3.575231]
[1693925905635,0.23274829,25727.0,25726.0,3.584231]
[1693925905834,0.23274829,25727.0,25726.0,3.87377113]
[1693925906236,0.23274829,25727.0,25726.0,3.97707113]
[1693925908353,0.0197,25729.0,25726.0,3.97707113]
[1693925908610,0.0197,25729.0,25728.0,0.1033]
[1693925908808,0.0197,25729.0,25728.0,2.82203427]
[1693925909237,0.0197,25729.0,25728.0,2.435389]
[1693925909944,0.0207,25729.0,25728.0,2.435389]
[1693925910463,0.05305856,25729.0,25728.0,2.435389]
[1693925913697,0.34250287,25729.0,25728.0,2.332089]
[1693925915095,0.34250287,25729.0,25728.0,2.435389]
[1693925917075,0.34250287,25729.0,25728.0,1.658026]
[1693925918848,0.34250287,25729.0,25728.0,0.880663]
[1693925919048,0.34250287,25729.0,25728.0,0.777363]
[1693925921352,0.34250287,25729.0,25728.0,1.554726]
[1693925924789,0.34250287,25729.0,25728.0,0.777363]
[1693925925332,0.34250287,25729.0,25728.0,1.554726]
[1693925926031,0.34250287,25729.0,25726.0,0.155539]
[1693925926032,2.30021492,25729.0,25726.0,0.155539]
[1693925926240,0.1033,25728.0,25725.0,2.332297]
[1693925926442,0.880675,25728.0,25726.0,0.777419]
[1693925926643,0.81588055,25728.0,25726.0,0.777419]
[1693925926844,1.59325555,25728.0,25726.0,0.777419]
[1693925927832,0.28013248,25727.0,25726.0,0.777419]
[1693925928166,1.05752548,25727.0,25726.0,0.009]
[1693925929071,1.83491848,25727.0,25726.0,0.009]
[1693925929466,1.83491848,25727.0,25725.0,1.729433]
[1693925929841,1.83491848,25727.0,25726.0,0.009]
[1693925930212,1.83491848,25727.0,25726.0,0.019]
[1693925930410,1.87343086,25727.0,25726.0,0.019]
[1693925930614,1.87343086,25727.0,25725.0,1.710433]
[1693925930837,1.87343086,25727.0,25726.0,0.01]
[1693925931522,1.87343086,25727.0,25725.0,1.728433]
[1693925932683,1.87343086,25727.0,25725.0,1.710433]
[1693925932903,0.27555906,25726.0,25725.0,1.710433]
[1693925933462,0.27555906,25726.0,25725.0,1.711433]
[1693925933876,0.27555906,25726.0,25725.0,1.712433]
[1693925934268,0.27555906,25726.0,25725.0,1.711433]
[1693925934873,0.27555906,25726.0,25725.0,1.712433]
[1693925943736,0.03851238,25727.0,25725.0,1.712433]
[1693925943934,0.03851238,25727.0,25725.0,2.489886]
[1693925944139,0.03851238,25727.0,25726.0,2.435569]
[1693925946554,0.13231801,25727.0,25726.0,2.435569]
[1693925947920,0.13131801,25727.0,25726.0,2.435569]
[1693925948310,0.13131801,25727.0,25726.0,2.436569]
[1693925949089,0.13131801,25727.0,25726.0,2.82321427]
[1693925949333,0.13131801,25727.0,25726.0,2.82421427]
[1693925949713,0.13131801,25727.0,25726.0,2.82321427]
[1693925949918,0.03851238,25727.0,25726.0,2.82421427]
[1693925950645,0.0197,25729.0,25726.0,2.82421427]
[1693925950845,0.03468873,25727.0,25726.0,2.72091427]
[1693925951054,0.0197,25729.0,25726.0,2.82421427]
[1693925951190,0.0197,25729.0,25728.0,0.1033]
[1693925951385,0.2648323,25729.0,25727.0,0.1033]
[1693925951637,0.0197,25729.0,25728.0,2.332089]
[1693925951817,0.0197,25729.0,25728.0,1.554726]
[1693925952011,0.28757523,25729.0,25728.0,1.554726]
[1693925952416,0.0197,25729.0,25728.0,1.554726]
[1693925952642,0.0207,25729.0,25728.0,1.554726]
[1693925952997,0.0197,25729.0,25728.0,1.554726]
[1693925953190,0.0207,25729.0,25728.0,1.556726]
[1693925953392,0.0207,25729.0,25728.0,0.002]
[1693925953594,0.798032,25729.0,25728.0,0.004]
[1693925954406,0.93765336,25729.0,25728.0,0.004]
[1693925955313,1.20439908,25729.0,25728.0,0.004]
[1693925955511,1.39056089,25729.0,25728.0,0.004]
[1693925956858,1.98173108,25729.0,25728.0,0.004]
[1693925959267,0.42706708,25729.0,25728.0,0.004]
[1693925959512,0.42706708,25729.0,25728.0,0.781363]
[1693925960298,0.46209017,25729.0,25728.0,1.558726]
[1693925960697,0.32246881,25729.0,25728.0,1.558726]
[1693925961838,0.25346881,25729.0,25728.0,1.558726]
[1693925962044,0.39311521,25729.0,25728.0,1.558726]
[1693925964463,0.39311521,25729.0,25728.0,0.781363]
[1693925965046,1.17044721,25729.0,25728.0,0.004]
[1693925965247,1.94777921,25729.0,25728.0,0.004]
[1693925967318,1.99442916,25729.0,25728.0,0.004]
[1693925968557,1.80813281,25729.0,25728.0,0.004]
[1693925973538,1.99449552,25729.0,25728.0,0.004]
[1693925977629,1.21716352,25729.0,25728.0,0.004]
[1693925979333,0.43983152,25729.0,25728.0,0.004]
[1693925980717,0.25346881,25729.0,25728.0,0.004]
[1693925985883,0.43992929,25729.0,25728.0,0.004]
[1693925989322,1.21726129,25729.0,25728.0,0.004]
[1693925989724,1.03080081,25729.0,25728.0,0.004]
[1693925992318,1.80813281,25729.0,25728.0,0.004]
[1693925995925,1.03080081,25729.0,25728.0,0.004]
[1693925996350,0.48661638,25729.0,25728.0,0.004]
[1693925996549,0.26817066,25729.0,25728.0,0.004]
[1693925997600,0.26817066,25729.0,25728.0,0.781363]
[1693926001749,0.26817066,25729.0,25728.0,1.558726]
[1693926001954,0.26817066,25729.0,25728.0,2.336089]
[1693926009264,0.26817066,25729.0,25728.0,2.439389]
[1693926013593,0.03502309,25729.0,25728.0,2.439389]
[1693926013944,0.42009312,25729.0,25728.0,2.439389]
[1693926014169,0.43926349,25729.0,25728.0,2.439389]
[1693926014383,0.43926349,25729.0,25728.0,3.14771127]
[1693926014620,0.43926349,25729.0,25728.0,4.12361427]
[1693926014824,0.43926349,25729.0,25728.0,4.11767427]
[1693926015045,0.43926349,25729.0,25728.0,4.11587427]
[1693926015245,0.43926349,25729.0,25728.0,4.04837427]
[1693926015246,0.42009312,25729.0,25728.0,4.04837427]
[1693926015853,0.18670808,25729.0,25728.0,4.04837427]
[1693926016283,0.18670808,25729.0,25728.0,4.11533427]
[1693926016489,0.18670808,25729.0,25728.0,4.11941427]
[1693926016703,0.0197,25733.0,25728.0,4.11593427]
[1693926016882,0.0197,25733.0,25732.0,0.1033]